fUSD/lending_fUSD_20241123
["ID","MTS","AMOUNT","RATE_DAILY","PERIOD"]
[343102899,1732353091573,-500.0,0.00068999,120]
[343102900,1732353091582,-529.74563282,0.00068999,120]
[343102901,1732353091592,-218.633121,0.00068999,110]
[343102902,1732353091603,-500.0,0.00068999,120]
[343102903,1732353091613,-502.58,0.00068999,120]
[343102904,1732353091623,-500.0,0.00068999,120]
[343102905,1732353091633,-364.77953404,0.00068999,120]
[343102906,1732353091643,-500.0,0.00068999,120]
[343102907,1732353091653,-500.0,0.00068999,120]
[343102908,1732353091663,-500.0,0.00068999,120]
[343102909,1732353091673,-500.0,0.00068999,120]
[343102910,1732353091683,-306.32,0.00068999,120]
[343102911,1732353091694,-500.0,0.00068999,120]
[343102912,1732353091703,-500.0,0.00068999,120]
[343102913,1732353091713,-500.0,0.00068999,120]
[343102914,1732353091724,-500.0,0.00068999,120]
[343102915,1732353091735,-649.38676103,0.00068999,120]
[343102916,1732353091744,-500.0,0.00068999,120]
[343102917,1732353091756,-500.0,0.00068999,120]
[343102918,1732353091766,-500.0,0.00068999,120]
[343102919,1732353091778,-500.0,0.00068999,120]
[343102920,1732353091788,-500.0,0.00068999,120]
[343102921,1732353091798,-500.0,0.00068999,120]
[343102922,1732353091808,-500.0,0.00068999,120]
[343102923,1732353091818,-500.0,0.00068999,120]
[343102924,1732353091829,-500.0,0.00068999,120]
[343102925,1732353091839,-500.0,0.00068999,120]
[343102926,1732353091849,-528.44904263,0.00068999,120]
[343102927,1732353091858,-500.0,0.00068999,120]
[343102928,1732353091870,-620.59,0.00068999,120]
[343102929,1732353091879,-391.255,0.00068999,7]
[343102930,1732353091890,-391.255,0.00068999,7]
[343102931,1732353091900,-233.525,0.00068999,120]
[343102932,1732353091910,-318.868696,0.00068999,120]
[343102933,1732353091920,-318.868696,0.00068999,120]
[343102934,1732353091930,-151.503969,0.00068999,120]
[343102935,1732353091940,-151.503969,0.00068999,120]
[343102936,1732353091950,-151.0,0.00068999,120]
[343102937,1732353091959,-151.0,0.00068999,120]
[343102938,1732353091970,-628.300239,0.00068999,120]
[343102939,1732353091981,-628.300239,0.00068999,120]
[343102940,1732353091991,-151.0,0.00068999,120]
[343102941,1732353092000,-151.0,0.00068999,120]
[343102942,1732353092010,-218.237785,0.00068999,120]
[343102943,1732353092019,-539.73,0.00068999,120]
[343102944,1732353092029,-539.73,0.00068999,120]
[343102945,1732353092039,-539.73,0.00068999,120]
[343102946,1732353092048,-539.73,0.00068999,120]
[343102947,1732353092057,-539.75,0.00068999,120]
[343102948,1732353092068,-1027.821181,0.00068999,120]
[343102949,1732353092078,-1027.821181,0.00068999,120]
[343102950,1732353092088,-563.31,0.00068999,120]
[343102951,1732353092098,-563.31,0.00068999,120]
[343102952,1732353092108,-563.31,0.00068999,120]
[343102953,1732353092118,-563.31,0.00068999,120]
[343102954,1732353092127,-563.45,0.00068999,120]
[343102955,1732353092137,-182.694449,0.00068999,120]
[343102956,1732353092148,-187.794479,0.00068999,120]
[343102957,1732353092158,-182.694449,0.00068999,120]
[343102958,1732353092167,-187.794479,0.00068999,120]
[343102959,1732353092177,-254.290561,0.00068999,120]
[343102960,1732353092186,-254.290561,0.00068999,120]
[343102961,1732353092196,-500.0,0.00068999,120]
[343102962,1732353092206,-500.0,0.00068999,120]
[343102963,1732353092215,-467.445494,0.00068999,120]
[343102964,1732353092226,-500.0,0.00068999,120]
[343102965,1732353092236,-500.0,0.00068999,120]
[343102966,1732353092246,-467.445494,0.00068999,120]
[343102967,1732353092255,-151.0,0.00068999,120]
[343102968,1732353092266,-881.69,0.00068999,120]
[343102969,1732353092276,-881.69,0.00068999,120]
[343102970,1732353092286,-881.69,0.00068999,120]
[343102971,1732353092296,-881.69,0.00068999,120]
[343102972,1732353092306,-881.81,0.00068999,120]
[343102973,1732353092315,-219.0,0.00068999,120]
[343102974,1732353092325,-151.0,0.00068999,120]
[343102975,1732353092335,-1210.431448,0.00068999,120]
[343102976,1732353092344,-1210.431448,0.00068999,120]
[343102977,1732353092353,-151.0,0.00068999,120]
[343102978,1732353092363,-680.12,0.00068999,120]
[343102979,1732353092373,-680.12,0.00068999,120]
[343102980,1732353092383,-680.12,0.00068999,120]
[343102981,1732353092392,-680.12,0.00068999,120]
[343102982,1732353092402,-680.24,0.00068999,120]
[343102983,1732353092411,-720.033342,0.00068999,120]
[343102984,1732353092422,-720.033342,0.00068999,120]
[343102985,1732353092432,-786.5,0.00068999,120]
[343102986,1732353092442,-786.5,0.00068999,120]
[343102987,1732353092452,-786.5,0.00068999,120]
[343102988,1732353092462,-786.5,0.00068999,120]
[343102989,1732353092473,-786.5,0.00068999,120]
[343102990,1732353092483,-151.0,0.00068999,120]
[343102991,1732353092493,-202.70913,0.00068999,120]
[343102992,1732353092514,-202.70913,0.00068999,120]
[343102993,1732353092535,-1577.57,0.00068999,120]
[343102994,1732353092548,-1577.57,0.00068999,120]
[343102995,1732353092560,-1577.57,0.00068999,120]
[343102996,1732353092571,-1577.57,0.00068999,120]
[343102997,1732353092584,-1577.6,0.00068999,120]
[343102998,1732353092594,-151.0,0.00068999,120]
[343102999,1732353092606,-217.714346,0.00068999,120]
[343103000,1732353092617,-217.714346,0.00068999,120]
[343103001,1732353092629,-771.94,0.00068999,120]
[343103002,1732353092649,-771.94,0.00068999,120]
[343103003,1732353092671,-771.94,0.00068999,120]
[343103004,1732353092688,-771.94,0.00068999,120]
[343103005,1732353092698,-772.03697905,0.00068999,120]
[343103006,1732353092709,-151.0,0.00068999,120]
[343103007,1732353092720,-151.0,0.00068999,120]
[343103008,1732353092735,-3615.386557,0.00068999,120]
[343103009,1732353092747,-3615.386557,0.00068999,120]
[343103010,1732353092759,-69316.8622783,0.00069,120]
[343103011,1732353092774,-234623.06635632,0.00069,30]
[343103012,1732353092793,-89150.54554875,0.00069,120]
[343103013,1732353092812,-10000.0,0.00069,120]
[343103014,1732353092835,-8378.0,0.00069,120]
[343103015,1732353092850,-151.0,0.00069,120]
[343103016,1732353092864,-151.0,0.00069,120]
[343103017,1732353092875,-151.0,0.00069,120]
[343103018,1732353092887,-285.604341,0.00069,120]
[343103019,1732353092898,-184.056181,0.00069,120]
[343103020,1732353092910,-184.056181,0.00069,120]
[343103021,1732353093078,-151.0,0.00069,120]
[343103022,1732353093089,-151.0,0.00069,120]
[343103023,1732353093100,-184.056181,0.00069,120]
[343103024,1732353093112,-184.056181,0.00069,120]
[343103025,1732353093122,-151.0,0.00069,120]
[343103026,1732353093131,-211.444638,0.00069,120]
[343103027,1732353093141,-211.444638,0.00069,120]
[343103028,1732353093150,-211.444638,0.00069,120]
[343103029,1732353093159,-211.444638,0.00069,120]
[343103030,1732353093169,-692.0,0.00069,120]
[343103031,1732353093179,-258.488091,0.00069,120]
[343103032,1732353093189,-258.488091,0.00069,120]
[343103033,1732353093198,-258.488091,0.00069,120]
[343103034,1732353093208,-258.488091,0.00069,120]
[343103035,1732353093218,-151.0,0.00069,120]
[343103036,1732353093230,-151.0,0.00069,120]
[343103037,1732353093239,-151.0,0.00069,120]
[343103038,1732353093249,-151.0,0.00069,120]
[343103039,1732353093259,-400.66854171,0.00069,30]
[343103040,1732353093269,-151.0,0.00069,120]
[343103041,1732353093279,-151.0,0.00069,120]
[343103042,1732353093288,-151.0,0.00069,120]
[343103043,1732353093298,-268.312851,0.00069,120]
[343103044,1732353093308,-268.312851,0.00069,120]
[343103045,1732353093317,-268.312851,0.00069,120]
[343103046,1732353093327,-268.312851,0.00069,120]
[343103047,1732353093336,-268.312851,0.00069,120]
[343103048,1732353093345,-268.312851,0.00069,120]
[343103049,1732353093355,-151.0,0.00069,120]
[343103050,1732353093365,-151.0,0.00069,120]
[343103051,1732353093375,-151.0,0.00069,120]
[343103052,1732353093384,-432.096887,0.00069,30]
[343103053,1732353093395,-432.096887,0.00069,30]
[343103054,1732353093404,-432.096887,0.00069,30]
[343103055,1732353093414,-207.373056,0.00069,120]
[343103056,1732353093424,-432.096887,0.00069,30]
[343103057,1732353093434,-207.373056,0.00069,120]
[343103058,1732353093444,-432.096887,0.00069,30]
[343103059,1732353093454,-207.373056,0.00069,120]
[343103060,1732353093463,-432.096879,0.00069,30]
[343103061,1732353093474,-207.373056,0.00069,120]
[343103062,1732353093483,-207.373056,0.00069,120]
[343103063,1732353093493,-207.373059,0.00069,120]
[343103064,1732353093502,-218.633121,0.00069,110]
[343103065,1732353093511,-218.633121,0.00069,110]
[343103066,1732353093521,-218.633121,0.00069,110]
[343103067,1732353093531,-218.633121,0.00069,110]
[343103068,1732353093541,-218.633121,0.00069,110]
[343103069,1732353093551,-218.63312,0.00069,110]
[343103070,1732353093560,-151.0,0.00069,120]
[343103071,1732353093570,-151.0,0.00069,120]
[343103072,1732353093579,-151.0,0.00069,120]
[343103073,1732353093589,-151.0,0.00069,120]
[343103074,1732353093598,-151.0,0.00069,120]
[343103075,1732353093607,-194.394604,0.00069,120]
[343103076,1732353093616,-391.255,0.00069,7]
[343103077,1732353093626,-391.255,0.00069,7]
[343103078,1732353093635,-208.403674,0.00069,120]
[343103079,1732353093645,-208.403674,0.00069,120]
[343103080,1732353093653,-208.403674,0.00069,120]
[343103081,1732353093663,-289.844516,0.00069,120]
[343103082,1732353093673,-289.844516,0.00069,120]
[343103083,1732353093683,-289.844516,0.00069,120]
[343103084,1732353093693,-208.403674,0.00069,120]
[343103085,1732353093702,-208.403674,0.00069,120]
[343103086,1732353093712,-208.40367,0.00069,120]
[343103087,1732353093724,-289.844516,0.00069,120]
[343103088,1732353093739,-289.844516,0.00069,120]
[343103089,1732353093749,-289.844516,0.00069,120]
[343103090,1732353093760,-318.868696,0.00069,120]
[343103091,1732353093771,-318.868696,0.00069,120]
[343103092,1732353093781,-151.503969,0.00069,120]
[343103093,1732353093791,-151.503964,0.00069,120]
[343103094,1732353093800,-151.0,0.00069,120]
[343103095,1732353093810,-151.0,0.00069,120]
[343103096,1732353093822,-628.300239,0.00069,120]
[343103097,1732353093831,-628.300233,0.00069,120]
[343103098,1732353093841,-247.206952,0.00069,120]
[343103099,1732353093850,-151.0,0.00069,120]
[343103100,1732353093860,-629.291467,0.00069,120]
[343103101,1732353093870,-629.291467,0.00069,120]
[343103102,1732353093880,-629.291467,0.00069,120]
[343103103,1732353093890,-629.291467,0.00069,120]
[343103104,1732353093900,-629.291461,0.00069,120]
[343103105,1732353093910,-1027.821181,0.00069,120]
[343103106,1732353093919,-1027.821181,0.00069,120]
[343103107,1732353093929,-1027.821181,0.00069,120]
[343103108,1732353093938,-1027.821173,0.00069,120]
[343103109,1732353093949,-182.694449,0.00069,120]
[343103110,1732353093959,-182.694449,0.00069,120]
[343103111,1732353093969,-187.794479,0.00069,120]
[343103112,1732353093983,-182.694449,0.00069,120]
[343103113,1732353093993,-182.694444,0.00069,120]
[343103114,1732353094004,-187.794479,0.00069,120]
[343103115,1732353094014,-254.290561,0.00069,120]
[343103116,1732353094024,-254.290561,0.00069,120]
[343103117,1732353094035,-254.290561,0.00069,120]
[343103118,1732353094045,-254.290565,0.00069,120]
[343103119,1732353094055,-467.445494,0.00069,120]
[343103120,1732353094065,-467.445494,0.00069,120]
[343103121,1732353094076,-467.445494,0.00069,120]
[343103122,1732353094086,-467.445485,0.00069,120]
[343103123,1732353094095,-150.0,0.00069,120]
[343103124,1732353094106,-151.0,0.00069,120]
[343103125,1732353094116,-263.37149,0.00069,120]
[343103126,1732353094126,-151.0,0.00069,120]
[343103127,1732353094136,-151.0,0.00069,120]
[343103128,1732353094146,-1210.431448,0.00069,120]
[343103129,1732353094156,-1210.431448,0.00069,120]
[343103130,1732353094167,-1210.431448,0.00069,120]
[343103131,1732353094177,-1210.431456,0.00069,120]
[343103132,1732353094187,-226.4015,0.00069,120]
[343103133,1732353094197,-226.4015,0.00069,120]
[343103134,1732353094206,-226.4015,0.00069,120]
[343103135,1732353094216,-226.4015,0.00069,120]
[343103136,1732353094229,-226.4015,0.00069,120]
[343103137,1732353094239,-226.401503,0.00069,120]
[343103138,1732353094249,-151.0,0.00069,120]
[343103139,1732353094259,-151.0,0.00069,120]
[343103140,1732353094270,-180.379376,0.00069,120]
[343103141,1732353094281,-180.379376,0.00069,120]
[343103142,1732353094291,-180.379376,0.00069,120]
[343103143,1732353094301,-180.379376,0.00069,120]
[343103144,1732353094311,-180.379376,0.00069,120]
[343103145,1732353094321,-180.379376,0.00069,120]
[343103146,1732353094330,-212.2959,0.00069,120]
[343103147,1732353094339,-212.2959,0.00069,120]
[343103148,1732353094349,-212.2959,0.00069,120]
[343103149,1732353094358,-212.2959,0.00069,120]
[343103150,1732353094368,-212.2959,0.00069,120]
[343103151,1732353094378,-212.295895,0.00069,120]
[343103152,1732353094388,-720.033342,0.00069,120]
[343103153,1732353094398,-720.033342,0.00069,120]
[343103154,1732353094409,-720.033342,0.00069,120]
[343103155,1732353094419,-720.033335,0.00069,120]
[343103156,1732353094428,-151.0,0.00069,120]
[343103157,1732353094437,-151.0,0.00069,120]
[343103158,1732353094447,-202.70913,0.00069,120]
[343103159,1732353094457,-202.70913,0.00069,120]
[343103160,1732353094466,-202.70913,0.00069,120]
[343103161,1732353094480,-1200.0,0.00069,2]
[343103162,1732353094490,-202.70912,0.00069,120]
[343103163,1732353094500,-151.0,0.00069,120]
[343103164,1732353094510,-151.0,0.00069,120]
[343103165,1732353094520,-217.714346,0.00069,120]
[343103166,1732353094530,-217.714346,0.00069,120]
[343103167,1732353094540,-217.714346,0.00069,120]
[343103168,1732353094550,-217.714347,0.00069,120]
[343103169,1732353094560,-197.314853,0.00069,120]
[343103170,1732353094570,-151.0,0.00069,120]
[343103171,1732353094581,-151.0,0.00069,120]
[343103172,1732353094592,-151.0,0.00069,120]
[343103173,1732353094601,-151.0,0.00069,120]
[343103174,1732353094611,-3615.386557,0.00069,120]
[343103175,1732353094623,-3615.386557,0.00069,120]
[343103176,1732353094635,-3615.386557,0.00069,120]
[343103177,1732353094645,-3615.386564,0.00069,120]
[343103178,1732353094655,-151.0,0.00069,120]
[343103179,1732353094665,-151.0,0.00069,120]
[343103180,1732353094674,-151.0,0.00069,120]
[343103181,1732353094684,-151.0,0.00069,120]
[343103182,1732353094694,-151.0,0.00069,7]
[343103183,1732353094704,-151.0,0.00069,7]
[343103184,1732353094714,-15589.14150268,0.00069,30]
[343103185,1732353094725,-401993.30186721,0.00069,120]
[343103186,1732353094736,-1005.06,0.00069,120]
[343103187,1732353094747,-6674.91800883,0.00069041,120]
[343103188,1732353094760,-7614.70763953,0.00069041,120]
[343103189,1732353094771,-500.0,0.00069066,120]
[343103190,1732353094781,-165.46398525,0.00069136,28]
[343103191,1732353094791,-526.0,0.00069205,120]
[343103192,1732353094801,-150.0,0.00069223,120]
[343103193,1732353094811,-1996.0,0.00069223,120]
[343103194,1732353094821,-629.0,0.00069223,120]
[343103195,1732353094831,-1928.0,0.00069223,120]
[343103196,1732353094842,-561.0,0.00069223,120]
[343103197,1732353094852,-815.0,0.00069223,2]
[343103198,1732353094861,-3750.0,0.00069223,120]
[343103199,1732353094871,-1261.0,0.00069223,120]
[343103200,1732353094881,-3517.0,0.00069223,120]
[343103201,1732353094890,-918.0,0.00069223,120]
[343103202,1732353094900,-152.31,0.00069299,120]
[343103203,1732353094909,-185.46,0.000697,2]
[343103204,1732353094919,-1000.0,0.00069813,120]
[343103205,1732353094929,-1162.0,0.00069836,120]
[343103206,1732353094939,-5944.0,0.00069836,120]
[343103207,1732353094949,-150.0,0.00069836,2]
[343103208,1732353094959,-13666.0,0.00069836,120]
[343103209,1732353094968,-150.0,0.00069836,120]
[343103210,1732353094981,-500.0,0.00069855,120]
[343103211,1732353094991,-5000.0,0.0006987,30]
[343103212,1732353095000,-4378.60682411,0.00069871,15]
[343103213,1732353095010,-990.26,0.00069879,2]
[343103214,1732353095019,-700.0,0.000699,25]
[343103215,1732353095029,-1000.0,0.00069935,120]
[343103216,1732353095038,-1000.0,0.00069944,120]
[343103217,1732353095048,-500.0,0.00069946,120]
[343103218,1732353095168,-500.0,0.00069999,120]
[343103219,1732353095179,-100000.0,0.0007,70]
[343103220,1732353095189,-259.20031117,0.0007,120]
[343103221,1732353095199,-200.0,0.0007,120]
[343103222,1732353095208,-281.59354092,0.0007,120]
[343103223,1732353095218,-79551.89029853,0.0007,30]
[343103224,1732353095229,-5000.0,0.0007,120]
[343103225,1732353095238,-30000.0,0.0007,120]
[343103226,1732353095248,-1019.0,0.0007,120]
[343103227,1732353095258,-3000.0,0.0007,100]
[343103228,1732353095267,-2000.0,0.0007,120]
[343103229,1732353095277,-32264.97955051,0.0007015,2]
[343103230,1732353095287,-221.6637761,0.0007024,2]
[343103231,1732353095298,-1000.0,0.0007026,120]
[343103232,1732353095309,-2504.50697329,0.00070296,15]
[343103233,1732353095320,-500.0,0.00070419,120]
[343103234,1732353095329,-502.46380497,0.00070609,120]
[343103235,1732353095339,-315.83787373,0.00070732,2]
[343103236,1732353095349,-205.08,0.00070783,2]
[343103237,1732353095360,-519.30800816,0.00070877,120]
[343103238,1732353095370,-1074.72,0.00070879,120]
[343103239,1732353095380,-1074.72,0.00070879,120]
[343103240,1732353095389,-500.0,0.00070879,120]
[343103241,1732353095402,-500.0,0.00070879,120]
[343103242,1732353095411,-500.0,0.00070879,120]
[343103243,1732353095420,-500.0,0.00070879,120]
[343103244,1732353095430,-500.0,0.00070879,120]
[343103245,1732353095439,-500.0,0.00070879,120]
[343103246,1732353095449,-500.0,0.00070879,120]
[343103247,1732353095459,-500.0,0.00070879,120]
[343103248,1732353095468,-500.0,0.00070879,120]
[343103249,1732353095480,-243.39,0.00070879,120]
[343103250,1732353095489,-454290.92695778,0.0007088,120]
[343103251,1732353095499,-151.0,0.0007088,120]
[343103252,1732353095509,-184.056181,0.0007088,120]
[343103253,1732353095518,-151.0,0.0007088,120]
[343103254,1732353095527,-184.056181,0.0007088,120]
[343103255,1732353095537,-211.444638,0.0007088,120]
[343103256,1732353095546,-211.444638,0.0007088,120]
[343103257,1732353095555,-258.488091,0.0007088,120]
[343103258,1732353095565,-258.488091,0.0007088,120]
[343103259,1732353095575,-284.156399,0.0007088,120]
[343103260,1732353095584,-151.0,0.0007088,120]
[343103261,1732353095594,-151.0,0.0007088,120]
[343103262,1732353095603,-268.312851,0.0007088,120]
[343103263,1732353095612,-268.312842,0.0007088,120]
[343103264,1732353095621,-151.0,0.0007088,120]
[343103265,1732353095630,-151.0,0.0007088,120]
[343103266,1732353095640,-151.0,0.0007088,120]
[343103267,1732353095651,-151.0,0.0007088,7]
[343103268,1732353095661,-150.56,0.00070917,120]
[343103269,1732353095670,-160.28,0.00070946,120]
[343103270,1732353095681,-10000.0,0.00071,120]
[343103271,1732353095691,-1250.0,0.00071,2]
[343103272,1732353095700,-500.0,0.00071165,120]
[343103273,1732353095710,-2077.65653,0.00071165,120]
[343103274,1732353095727,-500.0,0.00071165,120]
[343103275,1732353095741,-500.0,0.00071165,120]
[343103276,1732353095751,-200.0,0.00071165,120]
[343103277,1732353095761,-150.0,0.00071327,120]
[343103278,1732353095771,-150.0,0.00071327,120]
[343103279,1732353095781,-1257.0,0.00071327,120]
[343103280,1732353095791,-158.75,0.00071377,120]
[343103281,1732353095800,-224.07,0.00071377,120]
[343103282,1732353095809,-150.112316,0.00071498,120]
[343103283,1732353095818,-302.87,0.00071647,60]
[343103284,1732353095828,-556.47,0.00071736,2]
[343103285,1732353095838,-153.69,0.00071741,2]
[343103286,1732353095848,-500.0,0.00071846,120]
[343103287,1732353095857,-4378.60682411,0.0007185,15]
[343103288,1732353095867,-164.69,0.00071878,2]
[343103289,1732353095876,-1074.72,0.00071979,120]
[343103290,1732353095885,-500.0,0.00071979,120]
[343103291,1732353095893,-500.0,0.00071979,120]
[343103292,1732353095903,-500.0,0.00071979,120]
[343103293,1732353095912,-24286.60753719,0.0007198,120]
[343103294,1732353095921,-165.46398525,0.00071991,28]
[343103295,1732353095929,-500.0,0.00072025,120]
[343103296,1732353095939,-1000.0,0.00072118,120]
[343103297,1732353095948,-990.26,0.00072143,2]
[343103298,1732353095957,-2504.50697329,0.00072168,15]
[343103299,1732353095966,-500.0,0.00072213,120]
[343103300,1732353095977,-1996.0,0.00072223,120]
[343103301,1732353095987,-629.0,0.00072223,120]
[343103302,1732353095996,-1928.0,0.00072223,120]
[343103303,1732353096005,-561.0,0.00072223,120]
[343103304,1732353096015,-815.0,0.00072223,2]
[343103305,1732353096023,-3750.0,0.00072223,120]
[343103306,1732353096032,-1261.0,0.00072223,120]
[343103307,1732353096042,-3517.0,0.00072223,120]
[343103308,1732353096051,-918.0,0.00072223,120]
[343103309,1732353096067,-200.0,0.00072325,120]
[343103310,1732353096087,-315.83787373,0.00072524,2]
[343103311,1732353096104,-500.0,0.0007253,120]
[343103312,1732353096125,-58150.55405463,0.000728,120]
[343103313,1732353096140,-1162.0,0.00072836,120]
[343103314,1732353096159,-5944.0,0.00072836,120]
[343103315,1732353096178,-150.0,0.00072836,2]
[343103316,1732353096196,-13666.0,0.00072836,120]
[343103317,1732353096215,-150.0,0.00072836,120]
[343103318,1732353096235,-16835.93307306,0.000729,120]
[343103319,1732353096250,-1732.0,0.00072947,90]
[343103320,1732353096268,-1074.72,0.00072999,120]
[343103321,1732353096283,-1074.72,0.00072999,120]
[343103322,1732353096299,-1074.72,0.00072999,120]
[343103323,1732353096317,-1074.72,0.00072999,120]
[343103324,1732353096333,-1074.72,0.00072999,120]
[343103325,1732353096348,-1074.72,0.00072999,120]
[343103326,1732353096363,-1074.72,0.00072999,120]
[343103327,1732353096377,-1074.72,0.00072999,120]
[343103328,1732353096392,-1074.72,0.00072999,120]
[343103329,1732353096407,-1074.82,0.00072999,120]
[343103330,1732353096422,-500.0,0.00072999,120]
[343103331,1732353096437,-500.0,0.00072999,120]
[343103332,1732353096451,-540.87932874,0.00072999,120]
[343103333,1732353096466,-500.0,0.00072999,120]
[343103334,1732353096481,-500.0,0.00072999,120]
[343103335,1732353096496,-500.0,0.00072999,120]
[343103336,1732353096511,-500.0,0.00072999,120]
[343103337,1732353096525,-500.0,0.00072999,120]
[343103338,1732353096540,-500.0,0.00072999,120]
[343103339,1732353096555,-633.17,0.00072999,120]
[343103340,1732353096570,-500.0,0.00072999,120]
[343103341,1732353096585,-500.0,0.00072999,120]
[343103342,1732353096600,-500.0,0.00072999,120]
[343103343,1732353096614,-178.72308328,0.00072999,120]
[343103344,1732353096629,-1000.3999051,0.00073,120]
[343103345,1732353096643,-500.0,0.00073062,120]
[343103346,1732353096658,-771.46,0.00073066,120]
[343103347,1732353096671,-205.08,0.00073121,2]
[343103348,1732353096685,-500.0,0.00073241,120]
[343103349,1732353096700,-500.0,0.00073262,120]
[343103350,1732353096714,-3914.28813862,0.000734,2]
[343103351,1732353096730,-1517.25922081,0.000734,2]
[343103352,1732353096745,-200.0,0.00073486,120]
[343103353,1732353096764,-1000.0,0.00073654,120]
[343103354,1732353096779,-100000.0,0.000737,80]
[343103355,1732353096794,-4378.60682411,0.00073828,15]
[343103356,1732353096809,-500.0,0.00073895,120]
[343103357,1732353096823,-1000.0,0.00073994,120]
[343103358,1732353096838,-3750.0,0.00074,120]
[343103359,1732353096852,-3749.99,0.00074,120]
[343103360,1732353096866,-3749.99,0.00074,120]
[343103361,1732353096879,-3750.0,0.00074,120]
[343103362,1732353096894,-1900.0,0.00074,120]
[343103363,1732353096908,-258.488091,0.00074,120]
[343103364,1732353096922,-500.0,0.00074,120]
[343103365,1732353096938,-258.488087,0.00074,120]
[343103366,1732353096952,-151.0,0.00074,120]
[343103367,1732353096967,-1025.0,0.00074,120]
[343103368,1732353096982,-250.0,0.00074,120]
[343103369,1732353096997,-3750.0,0.00074,120]
[343103370,1732353097016,-2504.50697329,0.0007404,15]
[343103371,1732353097035,-1000.0,0.00074188,120]
[343103372,1732353097055,-500.0,0.00074215,120]
[343103373,1732353097071,-153.81,0.000743,72]
[343103374,1732353097088,-153.81,0.000743,72]
[343103375,1732353097105,-153.81,0.000743,72]
[343103376,1732353097120,-153.81,0.000743,72]
[343103377,1732353097135,-153.81,0.000743,72]
[343103378,1732353097151,-153.81,0.000743,72]
[343103379,1732353097165,-153.81,0.000743,72]
[343103380,1732353097180,-153.81,0.000743,72]
[343103381,1732353097195,-153.81,0.000743,72]
[343103382,1732353097209,-153.81,0.000743,72]
[343103383,1732353097224,-153.81,0.000743,72]
[343103384,1732353097238,-153.81,0.000743,72]
[343103385,1732353097254,-500.0,0.00074311,120]
[343103386,1732353097268,-315.83787373,0.00074316,2]
[343103387,1732353097282,-151.0,0.00074327,120]
[343103388,1732353097296,-184.056181,0.00074327,120]
[343103389,1732353097311,-151.0,0.00074327,120]
[343103390,1732353097325,-184.056181,0.00074327,120]
[343103391,1732353097339,-211.444638,0.00074327,120]
[343103392,1732353097353,-211.444638,0.00074327,120]
[343103393,1732353097369,-150.0,0.00074327,120]
[343103394,1732353097384,-150.0,0.00074327,120]
[343103395,1732353097397,-1257.0,0.00074327,120]
[343103396,1732353097412,-200.0,0.000744,120]
[343103397,1732353097426,-990.26,0.00074407,2]
[343103398,1732353097440,-173.112316,0.00074498,120]